bitfinex-derivatives/quotes_BNBF0:USTF0_20250608
["timestamp","ask_amount","ask_price","bid_price","bid_amount"]
[1749397053352,0.922,651.94,651.22,2.28512286]
[1749397054251,0.922,651.94,651.21,2.28512286]
[1749397054555,0.922,651.94,651.2,2.28512286]
[1749397055353,0.922,651.94,651.19,2.28512286]
[1749397055553,0.922,651.94,651.18,2.28512286]
[1749397055753,0.922,651.94,651.19,2.28512286]
[1749397056553,0.922,651.94,651.18,2.28512286]
[1749397056957,0.922,651.94,651.2,2.28512286]
[1749397057454,0.922,651.94,651.19,2.28512286]
[1749397057658,0.922,651.94,651.21,2.28512286]
[1749397059454,0.922,651.94,651.2,2.28512286]
[1749397059955,0.922,651.94,651.28,2.28512286]
[1749397060357,0.922,651.94,651.27,2.28512286]
[1749397060555,0.922,651.94,651.29,2.28512286]
[1749397061155,0.922,651.94,651.11,0.30716775]
[1749397061156,0.922,651.94,651.3,2.28512286]
[1749397061455,0.922,651.94,651.24,2.28512286]
[1749397062160,0.922,651.94,651.25,2.28512286]
[1749397062357,0.922,651.94,651.24,2.28512286]
[1749397063957,0.922,651.94,651.26,2.28512286]
[1749397065258,0.922,651.94,651.27,2.28512286]
[1749397065460,0.922,651.94,651.26,2.28512286]
[1749397065960,0.922,651.94,651.27,2.28512286]
[1749397066357,0.922,651.94,651.26,2.28512286]
[1749397067158,0.922,651.94,651.27,2.28512286]
[1749397069758,0.922,651.94,651.28,2.28512286]
[1749397071160,0.922,651.94,651.11,0.30716775]
[1749397071161,0.922,651.94,651.37,2.28512286]
[1749397072862,0.26698173,651.95,651.37,2.28512286]
[1749397073462,0.26698173,651.95,651.35,2.28512286]
[1749397075863,0.868,651.94,651.36,2.28512286]
[1749397080176,0.868,651.94,651.37,2.28512286]
[1749397080678,0.868,651.94,651.36,2.28512286]
[1749397082476,0.868,651.94,651.48,1.52403554]
[1749397082872,0.868,651.94,651.47,1.52403554]
[1749397083076,0.868,651.94,651.48,1.52403554]
[1749397083572,0.868,651.94,651.37,2.28512286]
[1749397088285,0.868,651.94,651.31,2.28512286]
[1749397090282,0.868,651.94,651.32,2.28512286]
[1749397091784,0.868,651.94,651.45,1.52486912]
[1749397095388,0.868,651.94,651.46,1.52486912]
[1749397098193,0.868,651.94,651.51,1.52486912]
[1749397098392,0.868,651.94,651.52,1.52486912]
[1749397100591,0.868,651.94,651.53,1.52486912]
[1749397100991,0.868,651.94,651.52,1.52486912]
[1749397101492,0.868,651.94,651.53,1.52486912]
[1749397103494,0.868,651.94,651.54,1.52486912]
[1749397104191,0.868,651.94,651.55,1.52486912]
[1749397104792,0.868,651.94,651.54,1.52486912]
[1749397105695,0.868,651.94,651.55,1.52486912]
[1749397106191,0.868,651.94,651.54,1.52486912]
[1749397106493,0.868,651.94,651.55,1.52486912]
[1749397106693,0.26698173,651.95,651.55,1.52486912]
[1749397106892,0.26698173,651.95,651.56,1.52486912]
[1749397107392,0.26698173,651.95,651.57,1.52486912]
[1749397108493,0.26698173,651.95,651.58,1.52486912]
[1749397109397,1.091,651.94,651.59,1.52486912]
[1749397109897,1.091,651.94,651.6,1.52486912]
[1749397110995,1.091,651.94,651.61,1.52486912]
[1749397111299,1.091,651.94,651.5,2.28512286]
[1749397112396,1.091,651.94,651.61,1.53061607]
[1749397112897,1.091,651.94,651.6,1.53061607]
[1749397113398,1.091,651.94,651.61,1.53061607]
[1749397113799,1.091,651.94,651.6,1.53061607]
[1749397114296,1.091,651.94,651.61,1.53061607]
[1749397118502,1.091,651.94,651.62,1.53061607]
[1749397118902,0.26698173,651.95,651.63,1.53061607]
[1749397119203,0.26698173,651.95,651.62,1.53061607]
[1749397123406,0.26698173,651.95,651.6,1.53061607]
[1749397124807,0.26698173,651.95,651.56,1.53061607]
[1749397125107,1.002,651.94,651.63,1.53061607]
[1749397125305,1.002,651.94,651.61,1.53061607]
[1749397125704,1.002,651.94,651.62,1.53061607]
[1749397126202,1.002,651.94,651.61,1.53061607]
[1749397127906,1.002,651.94,651.6,1.53061607]
[1749397128106,1.002,651.94,651.61,1.53061607]
[1749397128408,1.002,651.94,651.6,1.53061607]
[1749397128810,1.002,651.94,651.59,1.53061607]
[1749397130112,1.002,651.94,651.45,2.28512286]
[1749397131410,1.002,651.94,651.44,2.28512286]
[1749397132513,1.002,651.94,651.43,2.28512286]
[1749397133310,1.002,651.94,651.44,2.28512286]
[1749397134213,1.002,651.94,651.45,2.28512286]
[1749397134414,1.002,651.94,651.44,2.28512286]
[1749397134711,1.002,651.94,651.51,2.28512286]
[1749397135315,1.002,651.94,651.5,2.28512286]
[1749397136412,1.002,651.94,651.11,0.30716775]
[1749397136413,1.002,651.94,651.49,2.28512286]
[1749397139915,1.002,651.94,651.5,2.28512286]
[1749397141115,0.26698173,651.95,651.5,2.28512286]
[1749397141317,0.26698173,651.95,651.53,2.28512286]
[1749397141919,0.26698173,651.95,651.52,2.28512286]
[1749397142315,0.26698173,651.95,651.53,2.28512286]
[1749397143920,0.696,651.94,651.53,2.28512286]
[1749397149722,0.696,651.94,651.52,2.28512286]
[1749397150219,0.696,651.94,651.53,2.28512286]
[1749397151223,0.696,651.94,651.52,2.28512286]
[1749397151922,0.696,651.94,651.49,2.28512286]
[1749397152120,0.696,651.94,651.5,2.28512286]
[1749397152325,0.696,651.94,651.49,2.28512286]
[1749397153028,0.696,651.94,651.47,2.28512286]
[1749397153223,0.696,651.94,651.36,2.28512286]
[1749397153427,0.696,651.94,651.38,2.28512286]
[1749397154125,0.696,651.94,651.39,2.28512286]
[1749397154522,0.696,651.94,651.38,2.28512286]
[1749397155022,0.696,651.94,651.35,2.28512286]
[1749397156630,0.696,651.94,651.34,2.28512286]
[1749397157732,0.696,651.94,651.33,2.28512286]
[1749397158932,0.696,651.94,651.34,2.28512286]
[1749397161238,0.696,651.94,651.35,2.28512286]
[1749397163139,0.696,651.94,651.41,2.28512286]
[1749397163436,0.696,651.94,651.39,2.28512286]
[1749397164136,0.696,651.94,651.44,2.28512286]
[1749397164339,0.696,651.94,651.43,2.28512286]
[1749397165342,0.696,651.94,651.44,2.28512286]
[1749397165736,0.696,651.94,651.39,2.28512286]
[1749397166539,0.696,651.94,651.41,2.28512286]
[1749397167941,0.696,651.94,651.42,2.28512286]
[1749397168139,0.696,651.94,651.4,2.28512286]
[1749397168338,0.696,651.94,651.41,2.28512286]
[1749397170345,0.696,651.94,651.55,1.5262946]
[1749397170844,0.696,651.94,651.56,1.5262946]
[1749397173342,0.696,651.94,651.42,2.28512286]
[1749397173343,0.696,651.94,651.57,1.5262946]
[1749397174242,0.696,651.94,651.56,1.5262946]
[1749397174543,0.696,651.94,651.41,2.28512286]
[1749397175545,0.696,651.94,651.44,2.28512286]
[1749397177050,0.26698173,651.95,651.44,2.28512286]
[1749397177748,0.26698173,651.95,651.47,2.28512286]
[1749397177943,0.26698173,651.95,651.46,2.28512286]
[1749397178145,0.26698173,651.95,651.48,2.28512286]
[1749397179349,0.26698173,651.95,651.49,2.28512286]
[1749397180352,0.798,651.94,651.49,2.28512286]
[1749397183146,0.798,651.94,651.5,2.28512286]
[1749397184147,0.798,651.94,651.52,2.28512286]
[1749397184352,0.798,651.94,651.53,2.28512286]
[1749397185553,0.798,651.94,651.54,2.28512286]
[1749397186150,0.798,651.94,651.53,2.28512286]
[1749397188055,0.798,651.94,651.55,2.28512286]
[1749397189155,0.798,651.94,651.54,2.28512286]
[1749397189357,0.798,651.94,651.53,2.28512286]
[1749397189957,0.798,651.94,651.11,0.30716775]
[1749397189958,0.798,651.94,651.52,2.28512286]
[1749397191359,0.26700119,651.87,651.52,2.28512286]
[1749397192560,0.26700119,651.87,651.51,2.28512286]
[1749397193859,0.26700119,651.87,651.54,2.28512286]
[1749397194459,0.26700119,651.87,651.53,2.28512286]
[1749397197060,0.26700119,651.87,651.55,2.28512286]
[1749397197660,0.26700119,651.87,651.56,2.28512286]
[1749397198261,0.26700119,651.87,651.57,2.28512286]
[1749397198761,0.26700119,651.87,651.56,2.28512286]
[1749397199164,0.26700119,651.87,651.58,2.28512286]
[1749397199861,0.26700119,651.87,651.6,2.28512286]
[1749397200061,0.26700119,651.87,651.59,2.28512286]
[1749397200266,0.26700119,651.87,651.6,2.28512286]
[1749397200761,0.26700119,651.87,651.11,0.30716775]
[1749397200762,0.26700119,651.87,651.62,2.28512286]
[1749397201264,0.26700119,651.87,651.63,2.28512286]
[1749397201466,0.26700119,651.87,651.64,2.28512286]
[1749397202663,0.26700119,651.87,651.65,2.28512286]
[1749397202862,0.26700119,651.87,651.66,2.28512286]
[1749397204865,0.26700119,651.87,651.65,2.28512286]
[1749397205263,1.03588713,652.25,651.63,2.28512286]
[1749397205461,0.26693872,651.96,651.67,2.28512286]
[1749397205861,2.25851424,652.31,651.67,2.28512286]
[1749397206063,0.26693565,651.96,651.67,2.28512286]
[1749397206365,2.77964217,652.33,651.68,2.28512286]
[1749397206565,0.26693053,651.96,651.67,2.28512286]
[1749397206767,1.03588713,652.31,651.67,2.28512286]
[1749397207163,0.26692029,652.0,651.67,2.28512286]
[1749397207466,1.74479121,652.31,651.67,2.28512286]
[1749397207666,0.26692132,652.0,651.69,2.28512286]
[1749397207863,1.03588713,652.31,651.69,2.28512286]
[1749397208067,1.039,652.32,651.68,2.28512286]
[1749397208266,0.26691927,652.0,651.69,2.28512286]
[1749397208464,1.039,652.32,651.69,2.28512286]
[1749397208662,0.26691824,652.0,651.68,2.28512286]
[1749397208865,1.039,652.32,651.68,2.28512286]
[1749397209066,3.81970014,652.32,651.68,2.28512286]
[1749397209265,0.26691927,652.0,651.68,2.28512286]
[1749397209467,1.03588713,652.31,651.69,2.28512286]
[1749397209669,0.26692029,652.0,651.69,2.28512286]
[1749397210065,1.039,652.32,651.67,2.28512286]
[1749397210265,0.26691824,652.0,651.67,2.28512286]
[1749397210470,1.039,652.32,651.67,2.28512286]
[1749397210765,0.26692029,652.0,651.66,2.28512286]
[1749397211068,1.03588713,652.41,651.66,2.28512286]
[1749397211265,0.26691927,652.0,651.66,2.28512286]
[1749397211570,2.68088124,652.4,651.66,2.28512286]
[1749397211770,0.26691313,652.0,651.66,2.28512286]
[1749397212272,2.68087914,652.4,651.66,2.28512286]
[1749397212569,0.26691517,652.0,651.65,2.28512286]
[1749397212769,2.15960458,652.38,651.65,2.28512286]
[1749397212967,0.26691313,652.22,651.65,2.28512286]
[1749397213470,0.26691313,652.22,651.11,2.59229061]
[1749397213673,0.26691313,652.22,651.12,0.30716304]
[1749397223382,0.26691313,652.22,651.35,2.28512286]
[1749397224786,0.26691313,652.22,651.34,2.28512286]
[1749397225381,0.26691313,652.22,651.35,2.28512286]
[1749397226085,0.26691313,652.22,651.34,2.28512286]
[1749397226481,0.26691313,652.22,651.41,2.28512286]
[1749397227485,0.26691313,652.22,651.42,2.28512286]
[1749397227782,0.26691313,652.22,651.5,2.28512286]
[1749397228286,0.26691313,652.22,651.57,2.28512286]
[1749397228485,0.26691313,652.22,651.59,2.28512286]
[1749397228881,0.26691313,652.22,651.58,2.28512286]
[1749397229086,0.26691313,652.22,651.59,2.28512286]
[1749397231689,0.26691313,652.22,651.6,2.28512286]
[1749397233587,0.26691313,652.22,651.61,2.28512286]
[1749397233889,0.26691313,652.22,651.52,2.28512286]
[1749397234090,0.26691313,652.22,651.51,2.28512286]
[1749397235086,1.03588713,652.21,651.26,2.28512286]
[1749397235290,1.03588713,652.2,651.26,2.28512286]
[1749397235490,1.03588713,652.19,651.26,2.28512286]
[1749397235786,1.03588713,652.18,651.26,2.28512286]
[1749397235985,1.03588713,652.17,651.25,2.28512286]
[1749397236186,1.03588713,652.16,651.25,2.28512286]
[1749397236385,1.03588713,652.15,651.25,2.28512286]
[1749397236586,1.03588713,652.14,651.25,2.28512286]
[1749397236790,1.03588713,652.21,651.26,2.28512286]
[1749397236992,1.03588713,652.21,651.12,0.30716304]
[1749397236993,1.03588713,652.2,651.27,2.28512286]
[1749397237190,1.03588713,652.19,651.27,2.28512286]
[1749397237388,1.03588713,652.18,651.27,2.28512286]
[1749397237690,1.03588713,652.17,651.27,2.28512286]
[1749397237890,1.03588713,652.16,651.27,2.28512286]
[1749397238189,1.03588713,652.15,651.27,2.28512286]
[1749397238396,1.03588713,652.21,651.26,2.28512286]
[1749397238593,1.03588713,652.2,651.26,2.28512286]
[1749397238893,1.03588713,652.19,651.29,2.28512286]
[1749397239093,1.03588713,652.18,651.29,2.28512286]
[1749397239294,1.03588713,652.17,651.29,2.28512286]
[1749397239593,1.03588713,652.16,651.29,2.28512286]
[1749397239792,1.03588713,652.21,651.29,2.28512286]
[1749397239991,1.03588713,652.2,651.29,2.28512286]
[1749397240189,1.03588713,652.19,651.29,2.28512286]
[1749397240489,1.03588713,652.18,651.29,2.28512286]
[1749397240691,1.03588713,652.17,651.29,2.28512286]
[1749397240894,1.55709332,652.21,651.29,2.28512286]
[1749397241091,1.03588713,652.2,651.3,2.28512286]
[1749397241290,1.03588713,652.19,651.3,2.28512286]
[1749397241495,1.03588713,652.18,651.3,2.28512286]
[1749397241790,1.03588713,652.17,651.3,2.28512286]
[1749397241993,1.03588713,652.21,651.3,2.28512286]
[1749397242194,1.03588713,652.2,651.3,2.28512286]
[1749397242390,1.03588713,652.19,651.3,2.28512286]
[1749397242595,1.03588713,652.18,651.3,2.28512286]
[1749397242795,1.03588713,652.17,651.3,2.28512286]
[1749397242992,2.68023859,652.21,651.3,2.28512286]
[1749397243292,2.78077809,652.2,651.38,2.28512286]
[1749397243496,1.03602239,652.19,651.38,2.28512286]
[1749397243693,1.03602239,652.18,651.38,2.28512286]
[1749397243893,1.03602239,652.21,651.38,2.28512286]
[1749397244095,1.03602239,652.2,651.4,2.28512286]
[1749397244298,1.03602239,652.19,651.4,2.28512286]
[1749397244497,1.03602239,652.21,651.4,2.28512286]
[1749397244697,1.03602239,652.2,651.39,2.28512286]
[1749397244997,1.03602239,652.19,651.42,2.28512286]
[1749397245196,2.78078201,652.19,651.45,2.28512286]
[1749397245397,2.78078003,652.18,651.45,2.28512286]
[1749397245698,1.03602239,652.17,651.46,2.28512286]
[1749397245894,2.78009462,652.21,651.46,2.28512286]
[1749397246097,0.52076908,652.2,651.46,2.28512286]
[1749397246296,2.25932554,652.21,651.46,2.28512286]
[1749397246498,1.74407232,652.2,651.46,2.28512286]
[1749397246696,1.74407236,652.2,651.46,2.28512286]
[1749397246900,0.52076912,652.2,651.46,2.28512286]
[1749397247096,1.82369554,652.22,651.47,2.28512286]
[1749397247302,3.04698148,652.22,651.48,2.28512286]
[1749397247501,2.25929713,652.21,651.48,2.28512286]
[1749397247699,2.78004975,652.2,651.48,2.28512286]
[1749397247898,1.03602239,652.19,651.48,2.28512286]
[1749397248100,0.26691313,652.22,651.48,2.28512286]
[1749397248403,1.03602239,652.21,651.48,2.28512286]
[1749397248601,1.03602239,652.2,651.12,0.30716304]
[1749397248802,1.03602239,652.19,651.12,0.30716304]
[1749397248996,1.03602239,652.18,651.12,0.30716304]
[1749397249199,1.03602239,652.17,651.12,0.30716304]
[1749397249500,1.03602239,652.16,651.12,0.30716304]
[1749397249703,1.03602239,652.15,651.12,0.30716304]
[1749397249898,1.03602239,652.14,651.12,0.30716304]
[1749397250098,1.03602239,652.13,651.12,0.30716304]
[1749397250398,1.03602239,652.12,651.12,0.30716304]
[1749397250600,1.03602239,652.11,651.12,0.30716304]
[1749397250903,1.03602239,652.1,651.12,0.30716304]
[1749397251101,1.03602239,652.21,651.12,0.30716304]
[1749397251303,1.03602239,652.2,651.12,0.30716304]
[1749397251505,1.03602239,652.19,651.12,0.30716304]
[1749397251705,1.03602239,652.18,651.12,0.30716304]
[1749397251903,1.03602239,652.17,651.12,0.30716304]
[1749397252100,1.03602239,652.16,651.12,0.30716304]
[1749397252304,1.03602239,652.15,651.12,0.30716304]
[1749397252600,1.04249798,652.14,651.12,0.30716304]
[1749397252804,1.04249798,652.13,651.12,0.30716304]
[1749397253005,1.04249798,652.12,651.12,0.30716304]
[1749397253203,1.04249798,652.11,651.12,0.30716304]
[1749397253403,2.16525975,652.21,651.12,0.30716304]
[1749397253609,2.16525842,652.2,651.12,0.30716304]
[1749397253804,3.38795216,652.19,651.12,0.30716304]
[1749397254105,3.9085975,652.18,651.12,0.30716304]
[1749397254309,3.90860094,652.17,651.12,0.30716304]
[1749397254508,1.56313656,652.16,651.12,0.30716304]
[1749397254703,1.04249798,652.15,651.12,0.30716304]
[1749397254902,1.04249798,652.14,651.12,0.30716304]
[1749397255105,1.04249798,652.13,651.12,0.30716304]
[1749397255306,1.04249798,652.12,651.12,0.30716304]
[1749397255605,1.04249798,652.21,651.12,0.30716304]
[1749397255809,1.04249798,652.2,651.12,0.30716304]
[1749397256007,1.04249798,652.19,651.12,0.30716304]
[1749397256206,1.04249798,652.18,651.12,0.30716304]
[1749397256405,1.04249798,652.17,651.12,0.30716304]
[1749397256705,1.04249798,652.16,651.12,0.30716304]
[1749397257009,1.04249798,652.15,651.12,0.30716304]
[1749397257204,1.04249798,652.14,651.12,0.30716304]
[1749397257406,1.04249798,652.13,651.12,0.30716304]
[1749397257608,1.04249798,652.21,651.12,0.30716304]
[1749397257806,1.04249798,652.2,651.12,0.30716304]
[1749397258110,1.04249798,652.19,651.12,0.30716304]
[1749397258311,1.04249798,652.21,651.3,2.28512286]
[1749397258610,1.04249798,652.2,651.3,2.28512286]
[1749397258812,1.04249798,652.19,651.3,2.28512286]
[1749397259008,1.04249798,652.21,651.3,2.28512286]
[1749397259211,1.04249798,652.2,651.31,2.28512286]
[1749397259406,1.04249798,652.21,651.31,2.28512286]
[1749397259811,2.18923074,652.21,651.37,2.28512286]
[1749397260011,1.74106343,652.2,651.37,2.28512286]
[1749397260211,0.52007657,652.2,651.37,2.28512286]
[1749397260512,1.74106343,652.2,651.37,2.28512286]
[1749397260712,2.18923074,652.21,651.37,2.28512286]
[1749397260907,1.22098406,652.2,651.37,2.28512286]
[1749397261117,0.52007516,652.2,651.38,2.28512286]
[1749397261313,1.14673276,652.21,651.38,2.28512286]
[1749397262208,2.70930665,652.21,651.38,2.28512286]
[1749397262415,1.22108335,652.2,651.38,2.28512286]
[1749397262614,1.74121165,652.2,651.38,2.28512286]
[1749397262809,2.36781611,652.2,651.37,2.28512286]
[1749397263013,1.14673276,652.2,651.37,2.28512286]
[1749397263712,1.14673276,652.2,651.38,2.28512286]
[1749397263911,2.36794511,652.2,651.38,2.28512286]
[1749397264117,1.66686036,652.2,651.38,2.28512286]
[1749397264314,1.14673276,652.19,651.42,2.28512286]
[1749397264512,1.14673276,652.19,651.12,0.30716304]
[1749397264513,1.14673276,652.19,651.4,2.28512286]
[1749397264817,1.14673276,652.19,651.41,2.28512286]
[1749397266617,1.14673276,652.19,651.42,2.28512286]
[1749397267119,1.14673276,652.2,651.4,2.28512286]
[1749397268821,2.8883544,652.2,651.4,2.28512286]
[1749397269022,1.14673276,652.2,651.4,2.28512286]
[1749397269223,1.66690566,652.2,651.4,2.28512286]
[1749397269421,1.14673276,652.2,651.4,2.28512286]
[1749397270224,1.66690488,652.2,651.4,2.28512286]
[1749397270521,1.04249798,652.19,651.35,2.28512286]
[1749397270719,1.56267219,652.2,651.35,2.28512286]
[1749397271024,1.04249798,652.19,651.35,2.28512286]
[1749397271525,1.04249798,652.18,651.35,2.28512286]
[1749397271725,2.78383222,652.19,651.35,2.28512286]
[1749397271926,1.04249798,652.18,651.35,2.28512286]
[1749397272119,0.52017353,652.2,651.35,2.28512286]
[1749397272323,1.04889348,652.19,651.32,2.28512286]
[1749397272620,1.04889348,652.18,651.32,2.28512286]
[1749397272822,1.04889348,652.17,651.32,2.28512286]
[1749397273021,1.04889348,652.16,651.31,2.28512286]
[1749397273225,2.79017091,652.19,651.31,2.28512286]
[1749397273526,1.04889348,652.18,651.31,2.28512286]
[1749397273720,1.04889348,652.17,651.31,2.28512286]
[1749397274021,1.04889348,652.16,651.31,2.28512286]
[1749397274421,1.04889348,652.16,651.32,2.28512286]
[1749397277624,1.04889348,652.16,651.33,2.28512286]
[1749397278022,1.04889348,652.15,651.29,2.28512286]
[1749397278326,1.04889348,652.16,651.29,2.28512286]
[1749397278524,1.04889348,652.15,651.29,2.28512286]
[1749397278721,1.04889348,652.16,651.29,2.28512286]
[1749397278925,1.04889348,652.15,651.29,2.28512286]
[1749397279124,1.04889348,652.16,651.29,2.28512286]
[1749397279325,1.04889348,652.15,651.29,2.28512286]
[1749397279522,1.04889348,652.16,651.29,2.28512286]
[1749397279826,1.04889348,652.15,651.29,2.28512286]
[1749397280127,1.04889348,652.16,651.29,2.28512286]
[1749397280324,1.04889348,652.15,651.31,2.28512286]
[1749397280525,1.04889348,652.16,651.31,2.28512286]
[1749397280723,1.04889348,652.15,651.31,2.28512286]
[1749397280925,1.04889348,652.16,651.31,2.28512286]
[1749397281121,1.04889348,652.15,651.31,2.28512286]
[1749397281425,1.04889348,652.14,651.31,2.28512286]
[1749397281623,1.04889348,652.16,651.31,2.28512286]
[1749397281922,1.04889348,652.15,651.31,2.28512286]
[1749397282224,1.04889348,652.16,651.34,2.28512286]
[1749397282422,1.04889348,652.15,651.34,2.28512286]
[1749397282624,1.04889348,652.16,651.35,2.28512286]
[1749397282823,1.04889348,652.15,651.35,2.28512286]
[1749397283027,1.009,652.17,651.35,2.28512286]
[1749397283028,1.04889348,652.16,651.35,2.28512286]
[1749397283225,1.04889348,652.15,651.34,2.28512286]
[1749397283528,1.04889348,652.14,651.34,2.28512286]
[1749397283828,1.04889348,652.16,651.34,2.28512286]
[1749397284023,1.04889348,652.15,651.34,2.28512286]
[1749397284224,1.04889348,652.14,651.34,2.28512286]
[1749397284427,1.04889348,652.16,651.34,2.28512286]
[1749397284624,1.04889348,652.15,651.35,2.28512286]
[1749397284924,1.04889348,652.14,651.35,2.28512286]
[1749397285127,1.04889348,652.13,651.35,2.28512286]
[1749397285328,1.04889348,652.16,651.35,2.28512286]
[1749397285526,1.04889348,652.15,651.35,2.28512286]
[1749397285730,1.04889348,652.14,651.35,2.28512286]
[1749397285927,1.04889348,652.13,651.35,2.28512286]
[1749397286130,1.04889348,652.16,651.35,2.28512286]
[1749397286430,1.04889348,652.15,651.35,2.28512286]
[1749397286631,1.04889348,652.14,651.35,2.28512286]
[1749397286831,1.04889348,652.13,651.35,2.28512286]
[1749397287029,1.04889348,652.12,651.35,2.28512286]
[1749397287231,1.04889348,652.16,651.35,2.28512286]
[1749397287431,1.04889348,652.15,651.35,2.28512286]
[1749397287728,1.04889348,652.14,651.36,2.28512286]
[1749397288027,1.04889348,652.13,651.41,2.28512286]
[1749397288327,1.04889348,652.12,651.41,2.28512286]
[1749397288532,1.04889348,652.11,651.42,2.28512286]
[1749397288829,1.04889348,652.13,651.42,2.28512286]
[1749397289028,1.04889348,652.12,651.42,2.28512286]
[1749397289333,1.04889348,652.11,651.42,2.28512286]
[1749397289628,1.04889348,652.1,651.42,2.28512286]
[1749397289829,1.04889348,652.13,651.42,2.28512286]
[1749397290029,1.04889348,652.12,651.42,2.28512286]
[1749397290228,1.04889348,652.11,651.42,2.28512286]
[1749397290431,1.04889348,652.1,651.42,2.28512286]
[1749397290632,2.79552782,652.15,651.43,2.28512286]
[1749397290828,2.79552367,652.14,651.44,2.28512286]
[1749397291129,2.79552633,652.13,651.44,2.28512286]
[1749397291330,2.27382943,652.12,651.44,2.28512286]
[1749397291532,1.04889348,652.11,651.44,2.28512286]
[1749397291732,1.04889348,652.1,651.44,2.28512286]
[1749397291930,1.04889348,652.09,651.44,2.28512286]
[1749397292130,1.04889348,652.08,651.44,2.28512286]
[1749397292332,1.04889348,652.13,651.45,2.28512286]
[1749397292629,1.04889348,652.12,651.45,2.28512286]
[1749397292927,1.04889348,652.11,651.46,2.28512286]
[1749397293134,1.04889348,652.1,651.5,2.28512286]
[1749397293331,1.04889348,652.09,651.52,2.28512286]
[1749397293534,1.04889348,652.08,651.52,2.28512286]
[1749397293736,1.04889348,652.07,651.53,2.28512286]
[1749397294036,2.27396376,652.11,651.53,2.28512286]
[1749397294239,1.04889348,652.1,651.53,2.28512286]
[1749397294535,1.04889348,652.09,651.53,2.28512286]
[1749397294737,1.04889348,652.08,651.54,2.28512286]
[1749397295031,1.04889348,652.07,651.53,2.28512286]
[1749397295232,1.04889348,652.06,651.53,2.28512286]
[1749397295531,1.04889348,652.05,651.53,2.28512286]
[1749397295731,1.04889348,652.04,651.53,2.28512286]
[1749397295938,1.04889348,652.09,651.53,2.28512286]
[1749397296235,1.04889348,652.08,651.53,2.28512286]
[1749397296532,1.04889348,652.07,651.53,2.28512286]
[1749397296735,1.14646283,652.1,651.53,2.28512286]
[1749397296736,1.04889348,652.06,651.53,2.28512286]
[1749397296934,1.04889348,652.05,651.53,2.28512286]
[1749397297133,1.04889348,652.04,651.53,2.28512286]
[1749397297337,1.04889348,652.09,651.53,2.28512286]
[1749397297637,1.04889348,652.08,651.53,2.28512286]
[1749397297934,1.04889348,652.07,651.53,2.28512286]
[1749397298141,1.04889348,652.06,651.54,2.28512286]
[1749397298437,1.04889348,652.05,651.54,2.28512286]
[1749397298635,1.04889348,652.1,651.54,2.28512286]
[1749397298837,1.04889348,652.09,651.54,2.28512286]
[1749397299035,1.04889348,652.08,651.54,2.28512286]
[1749397299239,1.04889348,652.07,651.55,2.28512286]
[1749397299537,1.04889348,652.06,651.55,2.28512286]
[1749397299736,1.04889348,652.12,651.57,2.28512286]
[1749397299935,1.04889348,652.11,651.57,2.28512286]
[1749397300134,1.04889348,652.1,651.57,2.28512286]
[1749397300434,1.04889348,652.09,651.58,2.28512286]
[1749397300638,1.04889348,652.15,651.58,2.28512286]
[1749397300834,1.04889348,652.14,651.58,2.28512286]
[1749397301039,1.04889348,652.13,651.58,2.28512286]
[1749397301238,1.04889348,652.12,651.58,2.28512286]
[1749397301436,1.04889348,652.11,651.58,2.28512286]
[1749397301639,1.04889348,652.1,651.58,2.28512286]
[1749397301935,1.04889348,652.15,651.58,2.28512286]
[1749397302138,1.04889348,652.14,651.58,2.28512286]
[1749397302339,1.04889348,652.13,651.57,2.28512286]
[1749397302540,1.04889348,652.12,651.57,2.28512286]
[1749397302737,1.04889348,652.11,651.57,2.28512286]
[1749397302938,1.04889348,652.1,651.58,2.28512286]
[1749397303138,1.05768141,652.15,651.58,2.28512286]
[1749397303438,1.05768141,652.15,651.15,3.83536224]
[1749397303439,1.05768141,652.14,651.57,2.28512286]
[1749397303738,1.05768141,652.13,651.57,2.28512286]
[1749397304041,1.05768141,652.12,651.57,2.28512286]
[1749397304237,1.05768141,652.11,651.57,2.28512286]
[1749397304441,1.05768141,652.16,651.57,2.28512286]
[1749397304638,1.05768141,652.15,651.57,2.28512286]
[1749397304939,1.05768141,652.14,651.56,2.28512286]
[1749397305142,1.05768141,652.13,651.56,2.28512286]
[1749397305438,1.05768141,652.12,651.56,2.28512286]
[1749397305642,1.05768141,652.11,651.56,2.28512286]
[1749397305840,1.05768141,652.16,651.56,2.28512286]
[1749397306142,1.05768141,652.15,651.56,2.28512286]
[1749397306342,1.05768141,652.14,651.55,2.28512286]
[1749397306539,1.05768141,652.13,651.55,2.28512286]
[1749397306743,1.05768141,652.12,651.55,2.28512286]
[1749397306944,1.05768141,652.11,651.55,2.28512286]
[1749397307139,1.05768141,652.1,651.55,2.28512286]
[1749397307344,1.05768141,652.16,651.51,2.28512286]